bitfinex/quotes_BTCUSD_20241002
["timestamp","ask_amount","ask_price","bid_price","bid_amount"]
[1727863970047,0.55077678,61333.0,61332.0,0.000819]
[1727863970260,0.47830552,61333.0,61332.0,0.000819]
[1727863970467,0.5266227,61333.0,61332.0,0.000819]
[1727863971157,0.47830552,61333.0,61332.0,0.000819]
[1727863971801,0.48030552,61333.0,61332.0,0.000819]
[1727863972032,0.55077678,61333.0,61332.0,0.000819]
[1727863973977,0.47830552,61333.0,61332.0,0.000819]
[1727863975354,0.52090645,61333.0,61332.0,0.000819]
[1727863975571,0.47830552,61333.0,61332.0,0.000819]
[1727863976194,0.52662522,61333.0,61332.0,0.000819]
[1727863977280,0.52662599,61333.0,61332.0,0.000819]
[1727863977492,0.47830552,61333.0,61332.0,0.000819]
[1727863980214,0.55077678,61333.0,61332.0,0.000819]
[1727863980430,0.47830552,61333.0,61332.0,0.000819]
[1727863980870,0.55077678,61333.0,61332.0,0.000819]
[1727863981088,0.66756045,61333.0,61332.0,0.000819]
[1727863981316,0.163065,61325.0,61324.0,0.06585427]
[1727863981551,0.32775945,61325.0,61324.0,0.06585427]
[1727863981817,0.77077558,61325.0,61324.0,0.01811423]
[1727863982060,0.77077558,61325.0,61313.0,0.24305865]
[1727863982061,0.163094,61314.0,61313.0,0.24305865]
[1727863982303,0.42774593,61314.0,61313.0,0.24305865]
[1727863982529,0.52774593,61314.0,61313.0,0.26117288]
[1727863982771,0.1631,61312.0,61311.0,0.001638]
[1727863983031,0.163097,61313.0,61312.0,0.0974]
[1727863983550,0.326141,61324.0,61312.0,0.0974]
[1727863983551,0.326176,61317.0,61312.0,0.11554059]
[1727863983794,0.24305865,61320.0,61312.0,0.11554059]
[1727863984012,0.163084,61318.0,61315.0,0.16309]
[1727863984237,0.163083,61319.0,61316.0,0.0974]
[1727863984447,0.18865225,61318.0,61317.0,0.0779]
[1727863984675,0.18865225,61318.0,61317.0,0.09604059]
[1727863984894,0.02556825,61318.0,61317.0,0.19599807]
[1727863985798,0.02556825,61318.0,61317.0,0.45254554]
[1727863986039,0.326096,61332.0,61331.0,0.17555748]
[1727863986040,0.163047,61332.0,61331.0,0.17555748]
[1727863986491,0.163047,61332.0,61331.0,0.19368026]
[1727863986955,0.163045,61333.0,61331.0,0.19368026]
[1727863987191,0.001638,61336.0,61335.0,0.163039]
[1727863987413,0.001638,61336.0,61335.0,0.43749648]
[1727863987629,0.001638,61336.0,61335.0,0.5078043]
[1727863988078,0.001638,61336.0,61335.0,0.3447653]
[1727863988539,0.001638,61336.0,61335.0,0.5078043]
[1727863988965,0.001638,61336.0,61335.0,0.5098043]
[1727863989400,0.001638,61336.0,61335.0,0.3467653]
[1727863989617,0.001638,61336.0,61335.0,0.5098043]
[1727863990675,0.001638,61336.0,61335.0,0.3467653]
[1727863991112,0.001638,61336.0,61335.0,0.5098043]
[1727863991549,0.001638,61336.0,61335.0,0.3467653]
[1727863991550,0.0271987,61336.0,61335.0,0.3467653]
[1727863993981,0.0271987,61336.0,61335.0,0.5098043]
[1727863995577,0.0271987,61336.0,61335.0,0.3467653]
[1727863997830,0.0271987,61336.0,61335.0,0.5098043]
[1727863998078,0.001638,61336.0,61335.0,0.69749875]
[1727863998645,0.325994,61351.0,61335.0,0.69749875]
[1727863998646,0.162999,61351.0,61348.0,0.1692]
[1727863998880,0.24316555,61353.0,61349.0,0.15218073]
[1727863999125,0.24316555,61353.0,61349.0,0.17007024]
[1727863999126,0.162995,61352.0,61349.0,0.17007024]
[1727863999372,0.162997,61351.0,61349.0,0.17007024]
[1727863999616,0.162993,61352.0,61349.0,0.17007024]
[1727864000187,0.162999,61350.0,61349.0,0.01788951]
[1727864000418,0.162999,61350.0,61334.0,0.48381752]
[1727864000419,0.16469445,61350.0,61341.0,0.0758]
[1727864000656,0.163033,61337.0,61335.0,0.1764]
[1727864000893,0.163033,61337.0,61329.0,0.15218073]
[1727864000894,0.326073,61336.0,61331.0,0.24305865]
[1727864001136,0.163047,61332.0,61331.0,0.24305865]
[1727864001649,0.163042,61334.0,61330.0,0.16305]
[1727864001903,0.001,61337.0,61336.0,0.169036]
[1727864002133,0.001,61337.0,61336.0,0.006]
[1727864002373,0.24305865,61345.0,61341.0,0.163021]
[1727864002612,0.163017,61344.0,61342.0,0.0794]
[1727864002841,0.163017,61343.0,61342.0,0.0794]
[1727864003289,0.02555791,61344.0,61335.0,0.0793]
[1727864003534,0.163036,61337.0,61335.0,0.0793]
[1727864004003,0.163036,61336.0,61335.0,0.0793]
[1727864004243,0.163044,61333.0,61330.0,0.077]
[1727864004473,0.326086,61334.0,61330.0,0.32005865]
[1727864004699,0.326086,61334.0,61330.0,0.077]
[1727864004700,0.163045,61333.0,61330.0,0.077]
[1727864005749,0.001638,61336.0,61330.0,0.32005865]
[1727864005973,0.001638,61336.0,61335.0,0.163039]
[1727864007076,0.001638,61336.0,61335.0,0.18091162]
[1727864007770,0.001638,61336.0,61335.0,0.18417196]
[1727864008232,0.001638,61336.0,61335.0,0.18417194]
[1727864008455,0.001638,61336.0,61335.0,0.54080607]
[1727864008687,0.003638,61336.0,61335.0,0.54080607]
[1727864009412,0.001638,61336.0,61335.0,0.54080607]
[1727864009856,0.002638,61336.0,61335.0,0.54180607]
[1727864010561,0.24316555,61353.0,61352.0,0.237993]
[1727864011058,0.24316555,61353.0,61352.0,0.25579291]
[1727864011281,0.0001069,61353.0,61352.0,0.25579291]
[1727864012197,0.0011069,61353.0,61352.0,0.26179291]
[1727864012442,0.0001069,61353.0,61352.0,0.25905235]
[1727864012675,0.0011069,61353.0,61352.0,0.45148736]
[1727864012942,0.0011069,61353.0,61352.0,0.45948736]
[1727864012943,0.0276569,61353.0,61352.0,0.45948736]
[1727864013895,0.0276569,61353.0,61352.0,0.29479291]
[1727864014110,0.0276569,61353.0,61352.0,0.27179291]
[1727864014573,0.1906479,61353.0,61352.0,0.10879991]
[1727864014800,0.0276569,61353.0,61352.0,0.03379991]
[1727864015276,0.1906479,61353.0,61352.0,0.03379991]
[1727864015556,0.1896479,61353.0,61352.0,0.02579991]
[1727864015792,0.326019,61347.0,61341.0,0.24305865]
[1727864016024,0.163009,61346.0,61343.0,0.163017]
[1727864016251,0.162994,61352.0,61348.0,0.163002]
[1727864016476,0.0255551,61346.0,61344.0,0.15218073]
[1727864016732,0.0255551,61346.0,61345.0,0.489035]
[1727864016976,0.0255551,61346.0,61345.0,0.67672945]
[1727864017421,0.0017449,61353.0,61352.0,0.167993]
[1727864017422,0.0027449,61353.0,61352.0,0.167993]
[1727864017860,0.0017449,61353.0,61352.0,0.162993]
[1727864018743,0.0057449,61353.0,61352.0,0.243793]
[1727864018962,0.0067449,61353.0,61352.0,0.243793]
[1727864020312,0.0057449,61353.0,61352.0,0.24705261]
[1727864020808,0.0057449,61353.0,61352.0,0.25105239]
[1727864021043,0.0057449,61353.0,61352.0,0.247793]
[1727864021706,0.02729685,61353.0,61352.0,0.247793]
[1727864022194,0.02729685,61353.0,61352.0,0.26748771]
[1727864026084,0.02729685,61353.0,61352.0,0.02369471]
[1727864026344,0.19028785,61353.0,61352.0,0.02369471]
[1727864026586,0.02729685,61353.0,61352.0,0.18668771]
[1727864026839,0.02729685,61353.0,61352.0,0.18669215]
[1727864027839,0.0017449,61353.0,61352.0,0.18669215]
[1727864028919,0.1647359,61353.0,61352.0,0.02369915]
[1727864029144,0.1647359,61353.0,61352.0,0.006]
[1727864030187,0.1647359,61353.0,61352.0,0.002]
[1727864030425,0.1647359,61353.0,61342.0,0.326036]
[1727864030426,0.326022,61346.0,61341.0,0.40608065]
[1727864030650,0.326013,61348.0,61341.0,0.40608065]
[1727864030651,0.163014,61345.0,61342.0,0.163019]
[1727864030872,0.163014,61345.0,61342.0,0.18070783]
[1727864031096,0.163016,61344.0,61342.0,0.01768883]
[1727864031313,0.326019,61346.0,61342.0,0.18070783]
[1727864031314,0.163012,61345.0,61342.0,0.18070783]
[1727864031536,0.163029,61339.0,61336.0,0.000819]
[1727864031985,0.326037,61343.0,61336.0,0.000819]
[1727864032240,0.163023,61341.0,61337.0,0.163031]
[1727864032492,0.163033,61337.0,61336.0,0.000819]
[1727864033178,0.163033,61337.0,61336.0,0.004819]
[1727864033406,0.163033,61337.0,61336.0,0.000819]
[1727864033630,0.02555798,61339.0,61336.0,0.000819]
[1727864033631,0.02555798,61339.0,61338.0,0.163031]
[1727864033860,0.02555798,61339.0,61338.0,0.16629136]
[1727864034099,0.02555798,61339.0,61338.0,0.244331]
[1727864036468,0.02755798,61339.0,61338.0,0.244331]
[1727864036947,0.02555798,61339.0,61338.0,0.24759118]
[1727864037180,0.02655798,61339.0,61338.0,0.26218327]
[1727864037408,0.02555798,61339.0,61338.0,0.26318327]
[1727864037865,0.02555798,61339.0,61338.0,0.26218327]
[1727864038562,0.162999,61350.0,61338.0,0.09915227]
[1727864038802,0.162999,61350.0,61346.0,0.163008]
[1727864039062,0.163013,61345.0,61342.0,0.16302]
[1727864039346,0.326024,61346.0,61333.0,0.1706]
[1727864039609,0.36861496,61360.0,61333.0,0.1706]
[1727864039610,0.326039,61343.0,61334.0,0.163041]
[1727864039881,0.16403,61339.0,61338.0,0.01]
[1727864040117,0.326043,61342.0,61332.0,0.163046]
[1727864040118,0.163033,61337.0,61332.0,0.163046]
[1727864040377,0.163031,61338.0,61331.0,0.326097]
[1727864040631,0.326058,61339.0,61330.0,0.24305865]
[1727864040632,0.163033,61337.0,61330.0,0.24305865]
[1727864040902,0.163033,61337.0,61336.0,0.001819]
[1727864041396,0.163033,61337.0,61336.0,0.000819]
[1727864041918,0.1885931,61337.0,61336.0,0.000819]
[1727864043605,0.1885931,61337.0,61336.0,0.003819]
[1727864044147,0.1885931,61337.0,61336.0,0.000819]
[1727864044662,0.1885931,61337.0,61336.0,0.002819]
[1727864046933,0.1885931,61337.0,61336.0,0.02075101]
[1727864047146,0.163033,61337.0,61336.0,0.002819]
[1727864047370,0.163033,61337.0,61336.0,0.02075101]
[1727864047850,0.163026,61340.0,61337.0,0.163033]
[1727864048078,0.163026,61340.0,61336.0,0.18378501]
[1727864048317,0.163026,61340.0,61336.0,0.165853]
[1727864048553,0.163026,61340.0,61337.0,0.01793201]
[1727864049076,0.163031,61338.0,61337.0,0.01793201]
[1727864050086,0.163031,61338.0,61336.0,0.000819]
[1727864050087,0.163033,61337.0,61336.0,0.000819]
[1727864051042,0.163033,61337.0,61336.0,0.01878174]
[1727864051266,0.163033,61337.0,61336.0,0.000819]
[1727864051518,0.163033,61337.0,61336.0,0.01878174]
[1727864051731,0.18859269,61337.0,61336.0,0.000819]
[1727864051952,0.18859269,61337.0,61336.0,0.01878174]
[1727864052204,0.18859269,61337.0,61336.0,0.000819]
[1727864053296,0.18859269,61337.0,61336.0,0.002819]
[1727864059222,0.35328714,61337.0,61336.0,0.002819]
[1727864059428,0.67595311,61337.0,61336.0,0.002819]
[1727864059656,0.65039342,61337.0,61336.0,0.002819]
[1727864059891,0.60362745,61337.0,61336.0,0.002819]
[1727864060112,0.62919198,61337.0,61336.0,0.000819]
[1727864060335,0.63519198,61337.0,61336.0,0.001819]
[1727864060548,0.64919198,61337.0,61336.0,0.002819]
[1727864060767,0.64319198,61337.0,61336.0,0.001819]
[1727864060990,0.8100738,61337.0,61336.0,0.001819]
[1727864061228,0.46174273,61326.0,61325.0,0.24305865]
[1727864061452,0.70293718,61326.0,61325.0,0.24305865]
[1727864061910,0.263081,61319.0,61318.0,0.000819]
[1727864062132,0.42777545,61319.0,61318.0,0.000819]
[1727864062325,0.42777545,61319.0,61318.0,0.01880173]
[1727864062583,0.42777545,61319.0,61318.0,0.000819]
[1727864063280,0.45334581,61319.0,61318.0,0.000819]
[1727864063499,0.46634581,61319.0,61318.0,0.001819]
[1727864063942,0.36634581,61319.0,61318.0,0.001819]
[1727864064431,0.37634581,61319.0,61318.0,0.001819]
[1727864064681,0.21165136,61319.0,61318.0,0.001819]
[1727864065661,0.21165136,61319.0,61318.0,0.02019292]
[1727864065934,0.21165136,61319.0,61318.0,0.001819]
[1727864066175,0.21165136,61319.0,61318.0,0.02019292]
[1727864066390,0.04857036,61319.0,61318.0,0.164903]
[1727864066611,0.04857036,61319.0,61318.0,0.18327692]
[1727864066612,0.03857036,61319.0,61318.0,0.18327692]
[1727864066939,0.013,61319.0,61318.0,0.18327692]
[1727864067165,0.163062,61327.0,61323.0,0.163069]
[1727864067391,0.163061,61327.0,61324.0,0.163067]
[1727864067611,0.163057,61328.0,61324.0,0.11419547]
[1727864067842,0.163057,61329.0,61327.0,0.15218073]
[1727864068302,0.163057,61329.0,61328.0,0.0937969]
[1727864068545,0.3261,61331.0,61328.0,0.0937969]
[1727864068806,0.163054,61330.0,61328.0,0.0937969]
[1727864069037,0.168054,61329.0,61328.0,0.0937969]
[1727864069274,0.163054,61329.0,61328.0,0.0937969]
[1727864069542,0.3261,61331.0,61328.0,0.0937969]
[1727864069765,0.163054,61329.0,61328.0,0.0937969]
[1727864069987,0.166054,61329.0,61328.0,0.0937969]
[1727864070198,0.166054,61329.0,61328.0,0.0947969]
[1727864070415,0.163054,61329.0,61328.0,0.0947969]
[1727864070649,0.326092,61333.0,61328.0,0.0947969]
[1727864070866,0.56914065,61335.0,61328.0,0.0947969]
[1727864070867,0.163054,61329.0,61328.0,0.0947969]
[1727864071320,0.35166019,61332.0,61328.0,0.0947969]
[1727864071519,0.16305,61331.0,61328.0,0.2578529]
[1727864072623,0.002,61331.0,61328.0,0.0947969]
[1727864072859,0.002,61331.0,61330.0,0.163052]
[1727864073126,0.002,61331.0,61330.0,0.16631272]
[1727864073394,0.002,61331.0,61330.0,0.528845]
[1727864073619,0.002,61331.0,61330.0,0.54858428]
[1727864073886,0.02556419,61332.0,61331.0,0.267549]
[1727864074138,0.02556419,61332.0,61331.0,0.58442418]
[1727864074405,0.02556419,61332.0,61331.0,0.41482325]
[1727864074619,0.18861119,61332.0,61331.0,0.09959352]
[1727864075064,0.18861119,61332.0,61331.0,0.01809352]
[1727864075506,0.18861119,61332.0,61330.0,0.003]
[1727864075507,0.02556419,61332.0,61330.0,0.003]
[1727864075726,0.164049,61331.0,61330.0,0.002]
[1727864075949,0.163068,61325.0,61321.0,0.163076]
[1727864076376,0.326111,61329.0,61322.0,0.01806808]
[1727864076591,0.163055,61329.0,61325.0,0.163064]
[1727864076803,0.163059,61328.0,61325.0,0.163064]
[1727864077025,0.18862259,61328.0,61325.0,0.163064]
[1727864077238,0.163061,61327.0,61326.0,0.0181143]
[1727864077449,0.163061,61327.0,61324.0,0.163068]
[1727864077693,0.16307,61324.0,61320.0,0.244577]
[1727864077937,0.163076,61321.0,61320.0,0.0815]
[1727864078187,0.02556359,61328.0,61320.0,0.0815]
[1727864078378,0.163076,61321.0,61320.0,0.0815]
[1727864078597,0.163076,61321.0,61318.0,0.000819]
[1727864078832,0.26862349,61327.0,61318.0,0.000819]
[1727864078833,0.163081,61319.0,61318.0,0.000819]
[1727864080007,0.18864855,61319.0,61318.0,0.000819]
[1727864080244,0.18964855,61319.0,61318.0,0.000819]
[1727864081790,0.18964855,61319.0,61318.0,0.001819]
[1727864083386,0.18964855,61319.0,61318.0,0.01993244]
[1727864083604,0.18964855,61319.0,61318.0,0.001819]
[1727864083823,0.18964855,61319.0,61318.0,0.01993244]
[1727864087558,0.02656755,61319.0,61318.0,0.01993244]
[1727864087994,0.18964855,61319.0,61318.0,0.01993244]
[1727864089148,0.02656755,61319.0,61318.0,0.01993244]
[1727864089381,0.18964855,61319.0,61318.0,0.01993244]
[1727864093664,0.02656755,61319.0,61318.0,0.01993244]
[1727864093877,0.18964855,61319.0,61318.0,0.01993244]
[1727864099461,0.18964855,61319.0,61318.0,0.001819]
[1727864100557,0.02656755,61319.0,61318.0,0.001819]
[1727864100770,0.18964855,61319.0,61318.0,0.0200485]
[1727864101001,0.18964855,61319.0,61318.0,0.001819]
[1727864101229,0.18964855,61319.0,61318.0,0.0200485]
[1727864101465,0.68159691,61319.0,61318.0,0.01702846]
[1727864101689,0.32877545,61319.0,61318.0,0.001819]
[1727864101932,0.001,61319.0,61318.0,0.001819]
[1727864102408,0.001,61319.0,61318.0,0.18008381]
[1727864102632,0.001,61319.0,61318.0,0.259203]
[1727864102848,0.001,61319.0,61318.0,0.27764501]
[1727864103527,0.56914265,61334.0,61323.0,0.489208]
[1727864103528,0.24305865,61334.0,61323.0,0.489208]
[1727864103742,0.24305865,61334.0,61332.0,0.163046]
[1727864103972,0.24305865,61334.0,61331.0,0.15218073]
[1727864104182,0.164675,61336.0,61333.0,0.01518081]
[1727864104183,0.163039,61335.0,61333.0,0.01518081]
[1727864104428,0.001638,61336.0,61331.0,0.15218073]
[1727864104676,0.001638,61336.0,61335.0,0.15218073]
[1727864104677,0.0271987,61336.0,61335.0,0.15218073]
[1727864105136,0.0271987,61336.0,61335.0,0.16736154]
[1727864105865,0.0271987,61336.0,61335.0,0.33040054]
[1727864106368,0.0271987,61336.0,61335.0,0.41240054]
[1727864106834,0.0271987,61336.0,61335.0,0.41440054]
[1727864107297,0.0271987,61336.0,61335.0,0.41840054]
[1727864107527,0.0271987,61336.0,61335.0,0.51770054]
[1727864107757,0.001638,61336.0,61335.0,0.51370054]
[1727864108240,0.001638,61336.0,61335.0,0.51570054]
[1727864108241,0.002638,61336.0,61335.0,0.51570054]
[1727864108476,0.003638,61336.0,61335.0,0.51770054]
[1727864108947,0.003638,61336.0,61335.0,0.10318081]
[1727864109177,0.003638,61336.0,61335.0,0.02118081]
[1727864109651,0.166674,61336.0,61335.0,0.02118081]
[1727864109881,0.003638,61336.0,61335.0,0.02118081]
[1727864110115,0.166674,61336.0,61335.0,0.02118081]
[1727864110344,0.003638,61336.0,61335.0,0.02118081]
[1727864110565,0.166674,61336.0,61335.0,0.02118081]
[1727864110785,0.002638,61336.0,61335.0,0.18021981]
[1727864111014,0.002638,61336.0,61335.0,0.01718081]
[1727864111245,0.02819861,61336.0,61335.0,0.01718081]
[1727864111715,0.02819861,61336.0,61335.0,0.01518081]
[1727864111716,0.19423461,61336.0,61335.0,0.01518081]
[1727864112132,0.326089,61333.0,61327.0,0.15218073]
[1727864112364,0.03319861,61336.0,61327.0,0.24305865]
[1727864112365,0.163057,61328.0,61327.0,0.24305865]
[1727864112588,0.163054,61329.0,61328.0,0.01518081]
[1727864112847,0.163078,61320.0,61319.0,0.24305865]
[1727864113346,0.163078,61320.0,61318.0,0.000819]
[1727864113577,0.326147,61323.0,61318.0,0.000819]
[1727864113578,0.326155,61321.0,61318.0,0.000819]
[1727864113812,0.326131,61325.0,61318.0,0.000819]
[1727864114035,0.163077,61321.0,61318.0,0.000819]
[1727864114288,0.49081245,61328.0,61318.0,0.000819]
[1727864114509,0.163077,61321.0,61318.0,0.163902]
[1727864115419,0.001,61321.0,61318.0,0.004819]
[1727864115674,0.163081,61319.0,61318.0,0.004819]
[1727864117021,0.001,61321.0,61318.0,0.004819]
[1727864117243,0.02556615,61324.0,61320.0,0.163078]
[1727864117466,0.02556615,61324.0,61319.0,0.15218073]
[1727864117700,0.02556615,61324.0,61318.0,0.081019]
[1727864117701,0.02556615,61324.0,61323.0,0.15218073]
[1727864118136,0.326119,61328.0,61323.0,0.15218073]
[1727864118356,0.163064,61326.0,61323.0,0.15218073]
[1727864118584,0.1,61341.0,61326.0,0.163062]
[1727864118585,0.326101,61331.0,61326.0,0.163062]
[1727864118811,0.326101,61331.0,61323.0,0.15218073]
[1727864118812,0.56914365,61334.0,61331.0,0.15218073]
[1727864119042,0.163057,61328.0,61323.0,0.47832073]
[1727864119266,0.001638,61336.0,61324.0,0.56919265]
[1727864119267,0.49078245,61333.0,61324.0,0.56919265]
[1727864119687,0.163049,61332.0,61328.0,0.163057]
[1727864119690,0.24469665,61336.0,61327.0,0.15218073]
[1727864119892,0.326079,61335.0,61331.0,0.163049]
[1727864120087,0.163042,61334.0,61331.0,0.163049]
[1727864120294,0.163045,61333.0,61330.0,0.163051]
[1727864120866,0.005,61334.0,61328.0,0.326111]
[1727864121184,0.163044,61333.0,61330.0,0.163051]
[1727864121570,0.18860508,61333.0,61330.0,0.163051]
[1727864121748,0.19260508,61333.0,61330.0,0.163051]
[1727864122416,0.163048,61332.0,61328.0,0.163056]
[1727864122586,0.163048,61332.0,61330.0,0.002]
[1727864123293,0.19460708,61333.0,61330.0,0.165052]
[1727864123510,0.163047,61332.0,61330.0,0.002]
[1727864123730,0.02556108,61333.0,61330.0,0.002]
[1727864123731,0.18860508,61333.0,61330.0,0.002]
[1727864123964,0.02556108,61333.0,61332.0,0.15218073]
[1727864124192,0.02556108,61333.0,61332.0,0.31522773]
[1727864125105,0.02556108,61333.0,61332.0,0.47992218]
[1727864125330,0.02556108,61333.0,61332.0,0.48192218]
[1727864126034,0.02556108,61333.0,61332.0,0.60492218]
[1727864126264,0.02556108,61333.0,61332.0,0.77402218]
[1727864126487,0.02556108,61333.0,61332.0,0.77602218]
[1727864126722,0.02556108,61333.0,61332.0,0.81447122]
[1727864126945,0.02556108,61333.0,61332.0,0.82397243]
[1727864127221,0.02556108,61333.0,61332.0,0.82597243]
[1727864127440,0.02556108,61333.0,61332.0,0.82797243]
[1727864127441,0.02656108,61333.0,61332.0,0.82797243]
[1727864127655,0.02556108,61333.0,61332.0,0.82397243]
[1727864127879,0.001638,61336.0,61335.0,0.186039]
[1727864128108,0.001638,61336.0,61335.0,0.53063345]
[1727864128543,0.001638,61336.0,61335.0,0.54313466]
[1727864129238,0.001638,61336.0,61335.0,0.35544021]
[1727864129485,0.002638,61336.0,61335.0,0.36344021]
[1727864129710,0.002638,61336.0,61335.0,0.26344021]
[1727864130563,0.003638,61336.0,61335.0,0.26744021]
[1727864130812,0.002638,61336.0,61335.0,0.26344021]
[1727864131097,0.003638,61336.0,61335.0,0.26744021]
[1727864131328,0.02819496,61336.0,61335.0,0.25944021]
[1727864131775,0.02819496,61336.0,61335.0,0.27134772]
[1727864132010,0.02819496,61336.0,61335.0,0.27734772]
[1727864132011,0.02919496,61336.0,61335.0,0.27734772]
[1727864132668,0.02919496,61336.0,61335.0,0.27134772]
[1727864132669,0.02819496,61336.0,61335.0,0.27134772]
[1727864134484,0.02919496,61336.0,61335.0,0.27734772]
[1727864135634,0.02919496,61336.0,61335.0,0.27816572]
[1727864139485,0.02919496,61336.0,61335.0,0.19826572]
[1727864145003,0.02919496,61336.0,61335.0,0.03522672]
[1727864145004,0.19223096,61336.0,61335.0,0.03522672]
[1727864145232,0.166674,61336.0,61335.0,0.03522672]
[1727864145919,0.165674,61336.0,61335.0,0.03122672]
[1727864146157,0.33036845,61336.0,61335.0,0.03422672]
[1727864146443,0.76004918,61336.0,61335.0,0.006818]
[1727864146889,0.76004918,61336.0,61335.0,0.000818]
[1727864147136,0.75904918,61336.0,61335.0,0.000818]
[1727864147399,0.77304918,61336.0,61335.0,0.004818]
[1727864147623,0.60686845,61336.0,61335.0,0.004818]
[1727864147841,0.60686845,61336.0,61335.0,0.000818]
[1727864148055,0.61886845,61336.0,61335.0,0.000818]
[1727864148292,0.49677488,61336.0,61335.0,0.000818]
[1727864148527,0.48477488,61336.0,61335.0,0.000818]
[1727864148790,0.04423888,61336.0,61335.0,0.000818]
[1727864149032,0.04423888,61336.0,61335.0,0.163857]
[1727864149251,0.05823888,61336.0,61335.0,0.163857]
[1727864149475,0.04423888,61336.0,61335.0,0.18834815]
[1727864149708,0.04367657,61336.0,61335.0,0.18834815]
[1727864149937,0.026638,61336.0,61335.0,0.18834815]
[1727864150246,0.013638,61336.0,61335.0,0.18834815]
[1727864150811,0.001638,61336.0,61335.0,0.18834815]
[1727864151039,0.008638,61336.0,61335.0,0.26850875]
[1727864151262,0.013638,61336.0,61335.0,0.26624815]
[1727864151750,0.008638,61336.0,61335.0,0.26524815]
[1727864151986,0.008638,61336.0,61335.0,0.27024815]
[1727864152205,0.001638,61336.0,61335.0,0.27024815]
[1727864152427,0.001638,61336.0,61335.0,0.26524815]
[1727864152659,0.001638,61336.0,61335.0,0.26824815]
[1727864152887,0.001638,61336.0,61335.0,0.27024815]
[1727864152888,0.002638,61336.0,61335.0,0.27024815]
[1727864153110,0.02819518,61336.0,61335.0,0.27024815]
[1727864153341,0.02919518,61336.0,61335.0,0.27324815]
[1727864153559,0.02819518,61336.0,61335.0,0.27024815]
[1727864153809,0.02919518,61336.0,61335.0,0.27324815]
[1727864154288,0.02819518,61336.0,61335.0,0.26824815]
[1727864154764,0.02919518,61336.0,61335.0,0.27324815]
[1727864157495,0.02919518,61336.0,61335.0,0.42542888]
[1727864159524,0.003638,61336.0,61335.0,0.42542888]
[1727864160219,0.003638,61336.0,61335.0,0.19634815]
[1727864160460,0.003638,61336.0,61335.0,0.03330915]
[1727864160916,0.166674,61336.0,61335.0,0.008818]
[1727864161138,0.165674,61336.0,61335.0,0.005818]
[1727864161389,0.001638,61336.0,61335.0,0.000818]
[1727864161650,0.003638,61336.0,61335.0,0.008818]
[1727864161897,0.003638,61336.0,61335.0,0.02969351]
[1727864162147,0.002638,61336.0,61335.0,0.166857]
[1727864162403,0.002638,61336.0,61335.0,0.02469351]
[1727864162641,0.165674,61336.0,61335.0,0.02469351]
[1727864162879,0.001638,61336.0,61335.0,0.18473251]
[1727864163112,0.003638,61336.0,61335.0,0.33691324]
[1727864163340,0.003638,61336.0,61335.0,0.41931324]
[1727864164256,0.001638,61336.0,61335.0,0.41931324]
[1727864164687,0.001638,61336.0,61335.0,0.42431324]
[1727864165359,0.001638,61336.0,61335.0,0.18673251]
[1727864165621,0.002638,61336.0,61335.0,0.19173251]
[1727864165843,0.02819735,61336.0,61335.0,0.19173251]
[1727864166058,0.002638,61336.0,61335.0,0.19173251]
[1727864166281,0.002638,61336.0,61335.0,0.18973251]
[1727864166510,0.003638,61336.0,61335.0,0.02969351]
[1727864166737,0.166674,61336.0,61335.0,0.02969351]
[1727864166958,0.166674,61336.0,61335.0,0.02669351]
[1727864166959,0.18271257,61336.0,61335.0,0.02669351]
[1727864167183,0.18371257,61336.0,61335.0,0.008818]
[1727864167397,0.18271257,61336.0,61335.0,0.02680458]
[1727864167658,0.18171257,61336.0,61335.0,0.000818]
[1727864167877,0.01967657,61336.0,61335.0,0.02680458]
[1727864168114,0.18271257,61336.0,61335.0,0.005818]
[1727864168373,0.18271257,61336.0,61335.0,0.02680458]
[1727864168374,0.34740702,61336.0,61335.0,0.02680458]
[1727864168617,0.34740702,61336.0,61335.0,0.005818]
[1727864168865,0.37196941,61336.0,61335.0,0.000818]
[1727864169101,0.47196941,61336.0,61335.0,0.000818]
[1727864169345,0.47196941,61336.0,61335.0,0.002818]
[1727864169596,0.81575123,61336.0,61335.0,0.002818]
[1727864169832,0.86106376,61336.0,61335.0,0.002818]
[1727864170070,0.7203382,61336.0,61335.0,0.002818]
[1727864170324,0.65086941,61336.0,61335.0,0.002818]
[1727864170869,0.64786941,61336.0,61335.0,0.002818]
[1727864171372,0.66186941,61336.0,61335.0,0.000818]
[1727864171843,0.66286941,61336.0,61335.0,0.000818]
[1727864172358,0.66186941,61336.0,61335.0,0.000818]
[1727864172635,0.67586941,61336.0,61335.0,0.000818]
[1727864172908,0.65030702,61336.0,61335.0,0.000818]
[1727864173898,0.63630702,61336.0,61335.0,0.000818]
[1727864174336,0.63330702,61336.0,61335.0,0.000818]
[1727864174782,0.64230702,61336.0,61335.0,0.001818]
[1727864175240,0.63330702,61336.0,61335.0,0.000818]
[1727864175456,0.63930702,61336.0,61335.0,0.001818]
[1727864175719,0.46340702,61336.0,61335.0,0.001818]
[1727864175909,0.32427689,61336.0,61335.0,0.001818]
[1727864176141,0.48897134,61336.0,61335.0,0.001818]
[1727864176370,0.47797134,61336.0,61335.0,0.001818]
[1727864176606,0.48597134,61336.0,61335.0,0.001818]
[1727864177752,0.7436365,61336.0,61335.0,0.001818]
[1727864178011,0.65727134,61336.0,61335.0,0.001818]
[1727864182725,0.63170702,61336.0,61335.0,0.001818]
[1727864187304,0.48597299,61336.0,61335.0,0.001818]
[1727864187983,0.03267657,61336.0,61335.0,0.001818]
[1727864188208,0.03267657,61336.0,61335.0,0.26249064]
[1727864188710,0.19571257,61336.0,61335.0,0.09945164]
[1727864188929,0.18971257,61336.0,61335.0,0.02195164]
[1727864189166,0.02667657,61336.0,61335.0,0.02295164]
[1727864189412,0.02667657,61336.0,61335.0,0.164857]
[1727864189625,0.02667657,61336.0,61335.0,0.18614054]
[1727864189872,0.18171257,61336.0,61335.0,0.02310154]
[1727864190091,0.18271257,61336.0,61335.0,0.02310154]
[1727864190304,0.18271257,61336.0,61335.0,0.001818]
[1727864190561,0.34740702,61336.0,61335.0,0.02310154]
[1727864190783,0.34740702,61336.0,61335.0,0.001818]
[1727864192332,0.37297001,61336.0,61335.0,0.001818]
[1727864192787,0.34740702,61336.0,61335.0,0.001818]
[1727864193066,0.18271257,61336.0,61335.0,0.001818]